[Event "Turkish Youth Teams U18 2024"]
[Site "Karaman"]
[Date "2024.04.24"]
[Round "7"]
[White "Oktem, Ege Tuna"]
[Black "Ilgaz, Yusuf Kerem"]
[Result "1/2-1/2"]
[ECO "C47"]
[WhiteElo "2076"]
[BlackElo "1957"]
[Annotator "TA"]
[PlyCount "113"]
[EventDate "2024.04.21"]
[EventType "team-tourn"]
[EventCountry "TUR"]
[SourceTitle "playchess.com"]
[Source "ChessBase"]
[SourceQuality "1"]
[TimeControl "5400+30"]

{[%evp 9,113,0,0,-11,-22,-16,-17,-26,-27,-18,-21,-49,-35,-41,-40,-62,-56,-66,-45,-56,-43,-62,-41,-81,-76,-71,-50,-72,-42,-62,91,91,143,0,-2,-82,-82,-71,-91,-83,-59,-56,-58,-104,-91,-149,-125,-141,-122,-199,-23,-37,-31,-28,-45,-80,-83,-64,-99,-97,-29,-167,-143,-215,0,0,0,0,0,0,0,0,0,0,0,0,0,0,0,0,0,0,0,0,0,0,0,0,0,0,0,0,0,0,0,0,0,0,0,0,0,0,0,0,0,0]} 1. e4 {[%emt 0:03:00]} e5 {[%emt 0:01:00]} 2. Nf3 {[%emt 0:00:30]} Nc6 {[%emt 0:00:00]} 3. Nc3 {[%emt 0:00:30]} Nf6 {[%emt 0:00:00]} 4. h3 {[%emt 0:00:30]} Bb4 {[%emt 0:02:30]} 5. Bd3 {[%emt 0:00:30]} O-O {[%emt 0:00:30]} 6. a3 {[%emt 0:00:30]} Bxc3 {[%emt 0:06:30]} 7. dxc3 {[%emt 0:01:30]} d5 {[%emt 0:01:30]} 8. exd5 {[%emt 0:03:30]} Qxd5 {[%emt 0:01:30] And now ...e4 would win.} 9. Be2 {[%emt 0:00:30]} Bf5 {[%emt 0:06:30]} 10. Qxd5 {[%emt 0:04:30]} (10. Nh4 {is interesting.} Qe4 11. Nxf5 Rad8 12. Bd2) 10... Nxd5 {[%emt 0:00:00]} 11. Bd1 {[%emt 0:00:30]} f6 {[%emt 0:04:00]} 12. O-O {[%emt 0:02:30]} g5 {[%emt 0:03:30]} 13. c4 {[%emt 0:15:30]} Nde7 {[%emt 0:03:30][%cal Bd5e7,Be7f5,Bf5d4][%mdl 32]} 14. Be3 {[%emt 0:05:30]} Rfd8 {[%emt 0:08:30]} 15. Re1 {[%emt 0:01:30]} Bg6 {[%emt 0:03:30]} 16. b4 {[%emt 0:12:30]} Nf5 {[%emt 0:01:30]} 17. Bc1 {[%emt 0:01:30]} Nfd4 {[%emt 0:13:30]} 18. Ra2 {[%emt 0:05:30]} Bf7 {[%emt 0:03:30]} (18... Nxf3+ {simplifies} 19. Bxf3 Bf7 20. Ra1 Bxc4 21. Bxc6 bxc6 22. a4 a5) 19. Nd2 $1 {[%emt 0:00:30]} b5 $2 {[%emt 0:10:30]} (19... a5 $15 20. b5 Nb8) 20. c3 $16 {[%emt 0:00:30]} bxc4 {[%emt 0:01:30] [#]} (20... Nf5 $142) 21. cxd4 {[%emt 0:00:30]} (21. Ne4 $1 $16 f5 22. Nxg5) 21... c3 $11 {[%emt 0:00:30]} 22. Nb3 {[%emt 0:05:30]} (22. Rc2 $11 {remains equal.} cxd2 23. Bxd2 Nxd4 24. Rxc7) 22... Nxd4 $17 {[%emt 0:05:30]} 23. Nxd4 {[%emt 0:03:30]} exd4 {[%emt 0:00:30]} 24. Ra1 {[%emt 0:00:30]} Re8 {[%emt 0:04:14] Prevents f4} (24... d3 $6 25. Kh2 $14) 25. Be3 $1 {[%emt 0:02:30]} dxe3 {[%emt 0:02:26]} 26. fxe3 {[%emt 0:00:00]} (26. Rc1 $15 {feels stronger.}) 26... a5 {[%emt 0:00:30]} 27. b5 {[%emt 0:00:00]} ({Better is} 27. Bf3 Ra7 28. Rac1) 27... Rad8 {[%emt 0:00:30]} 28. Rc1 {[%emt 0:00:30]} Rd3 {[%emt 0:00:30][%cal Oe8e5]} 29. Kf2 {[%emt 0:00:30]} (29. a4 $17) 29... Bc4 $2 {[%emt 0:00:30]} (29... f5 $19 {...f4 is the strong threat.} 30. e4 Rd2+ (30... Rxe4 $2 31. Rxe4 fxe4 32. Be2 $17) (30... fxe4 $2 31. Be2 $19) 31. Kf3 f4 32. Rxc3 Bh5+ 33. g4 fxg3+ 34. Kxg3 Bxd1 (34... Rxd1 $2 35. Rxd1 Bxd1 36. Rxc7 $19)) 30. Be2 $11 {[%emt 0:00:30]} Rd2 $36 {[%emt 0:00:30][%mdl 2048] White is under pressure.} 31. Rxc3 {[%emt 0:00:30]} Bxb5 {[%emt 0:00:30]} 32. Kf3 {[%emt 0:07:30] [#]} c6 {[%emt 0:05:14]} 33. Bxb5 {[%emt 0:03:30]} cxb5 $17 {[%emt 0:00:30][%mdl 4096] Endgame. KRR-KRR} 34. Rc5 {[%emt 0:00:30]} Rb2 {[%emt 0:00:02]} (34... Ra2 $17 35. Rxb5 Rxa3) 35. Rc7 {[%emt 0:00:30]} (35. a4 $1 $11) 35... Rb3 $19 {[%emt 0:01:22]} 36. Kg4 {[%emt 0:11:26]} (36. Kf2 $17) 36... Rbxe3 $2 {[%emt 0:02:47]} ({But not} 36... Rexe3 37. Rxe3 Rxe3 38. Kf5 $15) ({Black should play} 36... Rxa3 $19 {[%cal Ob5b4] aiming for ...b4!} 37. Kf5 b4 (37... Rexe3 $2 {too greedy.} 38. Kxf6 h6 39. Rc8+ Kh7 40. Rec1 $18) (37... Raxe3 38. Rxe3 Rxe3 39. Kxf6 $17) 38. Kxf6 Ra2 (38... Rexe3 39. Rc8+) 39. Kxg5 b3 (39... Rxg2+ $2 40. Kf4 $19)) 37. Rxe3 $11 {[%emt 0:00:30] The position is equal.} Rxe3 $19 {[%emt 0:00:30] KR-KR} 38. Kf5 {[%emt 0:00:00]} Re2 {[%emt 0:00:54] Hoping for ...Rf2+.} 39. Kxf6 {[%emt 0:00:32] Rc8+ would kill now.} Rf2+ {[%emt 0:00:30]} ({And not} 39... Rxg2 40. Rc8#) 40. Kxg5 {[%emt 0:00:30]} Rxg2+ {[%emt 0:00:00]} 41. Kh4 $1 {[%emt 0:00:18]} Rb2 {[%emt 0:04:51]} 42. Ra7 $1 {[%emt 0:01:38]} a4 {[%emt 0:00:25] Strongly threatening ...Rb3.} 43. Rb7 $1 {[%emt 0:00:04]} Rb3 {[%emt 0:00:30][%cal Og8f8]} 44. Kg4 {[%emt 0:00:41]} Rxa3 {[%emt 0:02:37]} 45. Rxb5 {[%emt 0:00:05]} Ra1 {[%emt 0:00:14]} 46. Rb7 {[%emt 0:01:29]} a3 {[%emt 0:00:42]} 47. Ra7 {[%emt 0:00:18]} a2 {[%emt 0:02:10] ( -> ...Rg1+)} 48. Kh5 {[%emt 0:00:11]} Rh1 {[%emt 0:00:18]} 49. Rxa2 {[%emt 0:00:30]} Rxh3+ {[%emt 0:00:30]} 50. Kg5 {[%emt 0:00:00]} Rg3+ {[%emt 0:00:00]} 51. Kh6 {[%emt 0:00:33]} Rg6+ {[%emt 0:00:00]} 52. Kh5 {[%emt 0:00:00]} Rf6 {[%emt 0:00:17]} 53. Ra8+ {[%emt 0:00:09]} Kg7 {[%emt 0:00:30]} 54. Ra7+ {[%emt 0:00:30]} Rf7 {[%emt 0:00:00]} 55. Rxf7+ {[%emt 0:00:00]} Kxf7 {[%emt 0:00:00]} 56. Kh6 {[%emt 0:00:22]} Ke8 {[%emt 0:00:07]} 57. Kxh7 {[%emt 0:00:30] Weighted Error Value: White=0.23 (precise) /Black=0.24 (precise) .  Missed win:     	---       	Black=2      Mistake:       	White=7     	Black=3      Inaccurate:     	White=3     	Black=1      OK:         	White=12    	Black=12     Best:        	White=7     	Black=4      Strong:       	White=5     	---} 1/2-1/2

[Event "Turkish Youth Teams U18 2024"]
[Site "Karaman"]
[Date "2024.04.24"]
[Round "7"]
[White "Portakalci, Yusuf"]
[Black "Yildiz, Egehan"]
[Result "1/2-1/2"]
[ECO "D02"]
[WhiteElo "2038"]
[BlackElo "1912"]
[Annotator "TA"]
[PlyCount "76"]
[EventDate "2024.04.21"]
[EventType "team-tourn"]
[EventCountry "TUR"]
[SourceTitle "playchess.com"]
[Source "ChessBase"]
[SourceQuality "1"]
[TimeControl "5400+30"]

{[%evp 9,76,3,8,-7,4,-10,-10,0,-1,-10,-8,-20,-26,-27,-26,-23,-18,-23,-12,-30,-25,-39,-39,-41,-29,-34,-33,-43,-37,-36,-32,-40,-31,-33,-38,-39,-14,-40,-20,-25,-17,-94,-87,-88,-51,-51,-51,-200,-202,-184,-174,-264,-249,-287,-105,-133,-134,-125,-66,-76,-42,-42,-41,-41,-23,-23,-23,-23,-15]} 1. d4 {[%emt 0:01:00]} d5 {[%emt 0:07:00]} 2. Nf3 {[%emt 0:00:30]} e6 {[%emt 0:00:00]} 3. Bf4 {[%emt 0:00:30]} Bd6 {[%emt 0:00:00]} 4. e3 {[%emt 0:01:30]} Bxf4 {[%emt 0:07:30]} 5. exf4 {[%emt 0:00:30]} Qd6 {[%emt 0:00:30]} 6. Qc1 {[%emt 0:06:30]} b6 {[%emt 0:04:30]} 7. g3 {[%emt 0:05:30]} Ne7 {[%emt 0:02:30]} 8. c3 {[%emt 0:01:30] The position is equal.} O-O {[%emt 0:02:30]} 9. Nbd2 {[%emt 0:01:30]} c5 {[%emt 0:00:30]} 10. Nb3 {[%emt 0:07:30]} Ba6 {[%emt 0:07:30]} 11. Bxa6 {[%emt 0:00:30]} Nxa6 {[%emt 0:00:00]} 12. O-O {[%emt 0:00:30]} Nf5 {[%emt 0:00:00]} 13. Re1 {[%emt 0:00:30]} Rac8 {[%emt 0:00:30]} 14. Qd1 {[%emt 0:02:30]} Nb8 {[%emt 0:10:30]} 15. Qe2 {[%emt 0:07:30]} Nc6 {[%emt 0:03:30]} 16. Rad1 {[%emt 0:02:30]} c4 {[%emt 0:15:30]} 17. Nbd2 {[%emt 0:02:30]} b5 {[%emt 0:00:30]} 18. a3 {[%emt 0:00:30]} a5 {[%emt 0:00:30]} 19. Nf1 {[%emt 0:09:30]} b4 {[%emt 0:01:30]} 20. axb4 {[%emt 0:00:30]} axb4 {[%emt 0:00:00]} 21. Ne5 {[%emt 0:00:30]} bxc3 {[%emt 0:02:00]} 22. bxc3 {[%emt 0:01:30]} Rb8 {[%emt 0:02:30]} 23. g4 {[%emt 0:05:30] Nxc6 would now be deadly.} Nh4 {[%emt 0:03:30]} 24. Qe3 {[%emt 0:15:30]} Nxe5 {[%emt 0:03:30]} 25. fxe5 {[%emt 0:02:30]} (25. dxe5 $11 Qe7 26. Ng3) 25... Qe7 $1 $17 {[%emt 0:00:30]} 26. Ng3 {[%emt 0:05:31]} Rb3 {[%emt 0:00:30]} 27. Nh5 {[%emt 0:00:13]} Qg5 {[%emt 0:11:42]} 28. h3 {[%emt 0:12:55]} (28. Kh1 $15 Qxe3 (28... Qxg4 29. Nf6+ gxf6 30. Rg1 $11) 29. Rxe3) 28... Qxe3 $19 {[%emt 0:04:10]} 29. Rxe3 {[%emt 0:00:02]} Ra8 {[%emt 0:01:30]} 30. Kh2 {[%emt 0:01:29]} (30. Kf1 $142) 30... Ra2 {[%emt 0:01:22]} 31. Kg3 {[%emt 0:00:30]} Ng6 {[%emt 0:00:00]} (31... g5 $19 {Strongly threatening ...Kf8.} 32. Rf1 Rbb2) 32. Rc1 {[%emt 0:01:17] [#]} Rbb2 $1 {[%emt 0:00:21]} 33. Rf3 {[%emt 0:00:36] [#]} h6 {[%emt 0:02:56]} ({Black should play} 33... Ne7 $1 $17 34. Kg2 Nc6) 34. h4 $15 {[%emt 0:02:29]} Kf8 {[%emt 0:00:44]} 35. Nf4 {[%emt 0:01:36]} Nxf4 {[%emt 0:00:12]} 36. Rxf4 {[%emt 0:00:02]} Rc2 {[%emt 0:00:30]} 37. Rxc2 {[%emt 0:00:08]} Rxc2 {[%emt 0:00:00]} 38. Rf3 {[%emt 0:00:01]} Ke7 {[%emt 0:00:55] Weighted Error Value: White=0.22 (precise) /Black=0.12 (very precise) .  Missed win:     	---       	Black=1      Mistake:       	White=3     	Black=1      Inaccurate:     	White=1     	Black=2      OK:         	White=12    	Black=13     Best:        	---       	Black=2      Strong:       	---       	Black=2} 1/2-1/2

[Event "Turkish Youth Teams U18 2024"]
[Site "Karaman"]
[Date "2024.04.24"]
[Round "7"]
[White "Demirtas, Alper"]
[Black "Cakmak, Kursat Kagan"]
[Result "0-1"]
[ECO "D02"]
[WhiteElo "2020"]
[BlackElo "1798"]
[Annotator "TA"]
[PlyCount "90"]
[EventDate "2024.04.21"]
[EventType "team-tourn"]
[EventCountry "TUR"]
[SourceTitle "playchess.com"]
[Source "ChessBase"]
[SourceQuality "1"]
[TimeControl "5400+30"]

{[%evp 9,90,3,6,0,3,-8,-1,-4,0,-1,12,13,10,12,20,14,18,18,28,11,21,6,37,16,26,30,32,12,10,0,0,0,0,0,0,-13,4,-52,0,-135,-20,-27,-4,-26,-25,-20,-20,-24,-11,-41,0,-243,-235,-229,-233,-275,-275,-328,-347,-344,-349,-347,-352,-399,-429,-440,-433,-508,-510,-666,-480,-538,-518,-1027,-1012,-983,-1041,-1210,-1181,-1184,-1130,-1025,-1018]} 1. Nf3 {[%emt 0:01:00]} d5 {[%emt 0:01:00]} 2. d4 {[%emt 0:00:30]} e6 {[%emt 0:00:30]} 3. c3 {[%emt 0:00:00]} Nf6 {[%emt 0:00:00]} 4. Bf4 {[%emt 0:00:00]} Bd6 {[%emt 0:00:00]} 5. e3 {[%emt 0:00:00]} O-O {[%emt 0:00:30]} 6. Nbd2 {[%emt 0:00:00]} c5 {[%emt 0:00:30]} 7. Ne5 {[%emt 0:01:30]} Qc7 {[%emt 0:00:00]} 8. Bd3 {[%emt 0:06:30] The position is equal.} Nc6 {[%emt 0:01:00]} 9. Ndf3 {[%emt 0:01:30]} cxd4 {[%emt 0:00:30]} 10. exd4 {[%emt 0:00:00]} Ne4 {[%emt 0:01:30]} 11. Bg3 {[%emt 0:06:00]} Ne7 {[%emt 0:00:30]} 12. Ng4 {[%emt 0:06:30]} f6 {[%emt 0:06:30]} 13. Bxd6 {[%emt 0:02:30]} Qxd6 {[%emt 0:00:30]} 14. Qc2 {[%emt 0:03:30]} Ng6 {[%emt 0:03:30]} 15. Ne3 {[%emt 0:05:30]} Qf4 {[%emt 0:03:30]} 16. O-O {[%emt 0:04:30]} f5 {[%emt 0:09:30]} 17. Rae1 {[%emt 0:04:30]} Qd6 {[%emt 0:03:30]} 18. Kh1 {[%emt 0:04:30]} b6 {[%emt 0:05:30]} 19. Ne5 {[%emt 0:06:30]} Nxe5 {[%emt 0:04:30]} 20. dxe5 {[%emt 0:00:30]} Qc7 {[%emt 0:00:30]} ({But not} 20... Qxe5 21. f3 $14) 21. f3 {[%emt 0:00:30]} Nc5 {[%emt 0:00:30][%cal Oa7a5]} 22. f4 {[%emt 0:00:30]} Bb7 {[%emt 0:00:30][%cal Bc8b7,Bb7c6,Bc6b5][%mdl 32]} 23. Be2 {[%emt 0:00:30]} ({Better is} 23. Qd1 $11) 23... Ne4 {[%emt 0:00:30]} ({Black should play} 23... g5 $1 $15 24. fxg5 Qxe5) 24. Rd1 {[%emt 0:00:30] [#]} (24. Qc1 $11 {remains equal.}) 24... Qc5 {[%emt 0:00:30]} (24... g5 $1 $17 {White must now prevent ...gxf4.} 25. fxg5 Qxe5) 25. Rd4 {[%emt 0:00:30]} Rac8 {[%emt 0:00:30]} 26. Qa4 {[%emt 0:00:30]} Bc6 {[%emt 0:00:30]} 27. Qd1 {[%emt 0:00:30]} Bb5 {[%emt 0:00:30]} 28. Nc2 {[%emt 0:00:30]} a5 {[%emt 0:00:30]} 29. a4 {[%emt 0:00:30]} Bd7 {[%emt 0:11:30]} 30. Na3 $2 {[%emt 0:17:30] [#] Prevents b5. Black converts the advantage convincingly.} (30. g4 $11 {and White stays safe.}) 30... Nxc3 $1 $19 {[%emt 0:02:30][%mdl 512]} 31. bxc3 {[%emt 0:02:30]} Qxa3 {[%emt 0:00:00]} 32. c4 {[%emt 0:02:30]} Bxa4 {[%emt 0:07:00]} ({Not} 32... Qxa4 33. cxd5 Qxd1 34. Rfxd1 $15) 33. Qa1 {[%emt 0:03:30]} Qxa1 {[%emt 0:01:30]} 34. Rxa1 {[%emt 0:00:30]} Bb3 {[%emt 0:00:00]} 35. cxd5 {[%emt 0:00:30]} Bxd5 {[%emt 0:00:00]} 36. Kg1 {[%emt 0:00:30]} Rc2 {[%emt 0:05:30] Prevents Rd2.} 37. Bf1 {[%emt 0:00:30] Black is clearly winning.} Rfc8 {[%emt 0:01:30]} 38. Rdd1 {[%emt 0:01:30]} Rb2 {[%emt 0:01:30]} 39. Rdc1 {[%emt 0:00:30]} Rcc2 {[%emt 0:00:30] ...Rxc1 is the strong threat.} 40. Rxc2 {[%emt 0:00:30]} Rxc2 {[%emt 0:00:30] KRB-KRB} 41. Rb1 {[%emt 0:00:00]} (41. h3 $142) 41... a4 {[%emt 0:00:30] Hoping for ...a3.} 42. Ra1 {[%emt 0:00:00]} Ra2 {[%emt 0:00:30]} 43. Rb1 {[%emt 0:00:00]} a3 {[%emt 0:00:30]} 44. Rxb6 {[%emt 0:00:00]} Rb2 {[%emt 0:00:30]} 45. Ra6 {[%emt 0:00:30]} a2 {[%emt 0:00:00] Weighted Error Value: White=0.46/Black=0.18 (very precise) .  Loses game:     	White=1     	---        Mistake:       	White=3     	Black=2      Inaccurate:     	White=2     	Black=2      OK:         	White=7     	Black=14     Best:        	---       	Black=3      Brilliant:      	---       	Black=1} 0-1

[Event "Turkish Youth Teams U18 2024"]
[Site "Karaman"]
[Date "2024.04.24"]
[Round "7"]
[White "Yilmaz, Kerem Tuna"]
[Black "Engin, Onur Cinar"]
[Result "1/2-1/2"]
[ECO "B10"]
[WhiteElo "2009"]
[BlackElo "2101"]
[Annotator "RC"]
[PlyCount "121"]
[EventDate "2024.04.21"]
[EventType "team-tourn"]
[EventCountry "TUR"]
[SourceTitle "playchess.com"]
[Source "ChessBase"]
[SourceQuality "1"]
[TimeControl "5400+30"]

1. e4 {[%emt 0:01:00]} c6 {[%emt 0:04:00]} 2. Nf3 {[%emt 0:00:00]} d5 {[%emt 0:00:30]} 3. d3 {[%emt 0:00:00]} Bg4 {[%emt 0:06:30]} 4. Be2 {[%emt 0:00:30]} Nd7 {[%emt 0:04:30]} 5. Nc3 {[%emt 0:11:30]} Bxf3 {[%emt 0:04:30]} 6. Bxf3 {[%emt 0:00:30]} d4 {[%emt 0:00:30]} 7. Nb1 {[%emt 0:00:30]} e5 {[%emt 0:02:30]} 8. Bg4 {[%emt 0:11:30]} Ngf6 {[%emt 0:13:30]} 9. Bh3 {[%emt 0:04:30]} Bd6 {[%emt 0:08:30]} 10. O-O {[%emt 0:04:30]} O-O {[%emt 0:01:30]} 11. a4 {[%emt 0:26:30]} b5 {[%emt 0:08:30]} 12. f4 {[%emt 0:19:46]} exf4 {[%emt 0:00:30]} 13. Bxf4 {[%emt 0:00:27]} Bxf4 {[%emt 0:00:30]} 14. Rxf4 {[%emt 0:00:02]} Qc7 {[%emt 0:02:30]} 15. Qf1 {[%emt 0:04:47]} a6 {[%emt 0:13:30]} 16. Nd2 {[%emt 0:01:49]} c5 {[%emt 0:01:30]} 17. Re1 {[%emt 0:09:18]} Ne5 {[%emt 0:02:30]} 18. Rf5 {[%emt 0:01:22]} Neg4 {[%emt 0:06:45]} 19. Qf4 {[%emt 0:01:14]} Qxf4 {[%emt 0:00:30]} 20. Rxf4 {[%emt 0:00:30]} Ne5 {[%emt 0:00:30]} 21. axb5 {[%emt 0:00:30]} axb5 {[%emt 0:00:30]} 22. Nb3 {[%emt 0:00:30]} Ra2 {[%emt 0:00:30]} 23. Rb1 {[%emt 0:00:30]} c4 {[%emt 0:00:30]} 24. dxc4 {[%emt 0:00:15]} d3 {[%emt 0:06:52]} 25. cxd3 {[%emt 0:00:31]} Nxd3 {[%emt 0:00:30]} 26. Rxf6 {[%emt 0:00:22]} gxf6 {[%emt 0:00:06]} 27. cxb5 {[%emt 0:00:00]} Rxb2 {[%emt 0:02:28]} 28. Rxb2 {[%emt 0:00:29]} Nxb2 {[%emt 0:00:24]} 29. Bg4 {[%emt 0:00:04]} Na4 {[%emt 0:03:52]} 30. Be2 {[%emt 0:01:28]} Rd8 {[%emt 0:01:01]} 31. Kf2 {[%emt 0:00:29]} Kf8 {[%emt 0:02:55]} 32. Ke3 {[%emt 0:00:38]} Ke7 {[%emt 0:01:11]} 33. Bc4 {[%emt 0:00:34]} Nb6 {[%emt 0:00:30]} 34. Be2 {[%emt 0:00:01]} Ra8 {[%emt 0:00:55]} 35. Nd4 {[%emt 0:00:29]} Ra3+ {[%emt 0:00:23]} 36. Kf4 {[%emt 0:00:39]} Ra4 {[%emt 0:00:30]} 37. Nf5+ {[%emt 0:00:02]} Kd7 {[%emt 0:01:13]} 38. Nh6 {[%emt 0:00:30]} Nd5+ {[%emt 0:01:09]} 39. Kf5 {[%emt 0:00:01]} Ne3+ {[%emt 0:00:24]} 40. Kxf6 {[%emt 0:00:35]} Rxe4 {[%emt 0:00:30]} 41. Bf3 {[%emt 0:01:14]} Re6+ {[%emt 0:00:22]} 42. Kg7 {[%emt 0:00:31]} Nxg2 {[%emt 0:00:18]} 43. Bg4 {[%emt 0:00:30]} Kc7 {[%emt 0:00:30]} 44. Bxe6 {[%emt 0:00:30]} fxe6 {[%emt 0:00:30]} 45. Kxh7 {[%emt 0:00:30]} e5 {[%emt 0:00:30]} 46. Kg6 {[%emt 0:00:30]} e4 {[%emt 0:00:30]} 47. Ng4 {[%emt 0:00:30]} Kb6 {[%emt 0:00:00]} 48. Kf5 {[%emt 0:00:39]} e3 {[%emt 0:00:20]} 49. Nxe3 {[%emt 0:00:30]} Nxe3+ {[%emt 0:00:30]} 50. Kf4 {[%emt 0:00:30]} Ng2+ {[%emt 0:00:30]} 51. Kg3 {[%emt 0:00:30]} Ne3 {[%emt 0:00:30]} 52. Kf3 {[%emt 0:00:30]} Nf5 {[%emt 0:00:30]} 53. Kf4 {[%emt 0:00:00]} Nh4 {[%emt 0:01:00]} 54. Kg4 {[%emt 0:00:00]} Ng2 {[%emt 0:00:16]} 55. Kg3 {[%emt 0:00:13]} Ne3 {[%emt 0:00:30]} 56. h3 {[%emt 0:00:30]} Kxb5 {[%emt 0:00:30]} 57. Kf3 {[%emt 0:00:30]} Kc6 {[%emt 0:00:30]} 58. h4 {[%emt 0:00:30]} Nf5 {[%emt 0:00:30]} 59. h5 {[%emt 0:00:30]} Kd6 {[%emt 0:00:30]} 60. Kf4 {[%emt 0:00:30]} Ke6 {[%emt 0:00:30]} 61. Ke4 {[%emt 0:00:30]} 1/2-1/2

[Event "Turkish Youth Teams U18 2024"]
[Site "Karaman"]
[Date "2024.04.24"]
[Round "7"]
[White "Dogan, Umut Anil"]
[Black "Tarhan, Adar"]
[Result "0-1"]
[ECO "A14"]
[WhiteElo "1983"]
[BlackElo "2446"]
[Annotator "TA"]
[PlyCount "90"]
[EventDate "2024.04.21"]
[EventType "team-tourn"]
[EventCountry "TUR"]
[SourceTitle "playchess.com"]
[Source "ChessBase"]
[SourceQuality "1"]
[TimeControl "5400+30"]

{[%evp 19,90,0,0,2,6,-6,-3,0,-16,-23,19,18,40,35,39,-27,-25,-29,-20,-34,-43,-43,15,21,22,17,13,-14,-17,-23,-11,-110,-106,-218,-125,-256,-132,-131,-131,-124,0,0,0,0,0,0,0,0,0,-53,0,0,0,0,0,-75,-67,-75,-75,-75,-29,-781,-782,-782,-748,-652,-678,-729,-727,-950,-732,-29988,-961]} 1. Nf3 {[%emt 0:04:00]} Nf6 {[%emt 0:03:00]} 2. c4 {[%emt 0:01:30]} e6 {[%emt 0:00:30]} 3. g3 {[%emt 0:04:30]} d5 {[%emt 0:00:30]} 4. Bg2 {[%emt 0:00:30]} Be7 {[%emt 0:00:30]} 5. O-O {[%emt 0:01:30]} O-O {[%emt 0:00:30]} 6. b3 {[%emt 0:03:30]} d4 {[%emt 0:00:30]} 7. e3 {[%emt 0:01:30]} c5 {[%emt 0:00:30]} 8. exd4 {[%emt 0:01:30]} cxd4 {[%emt 0:00:30]} 9. d3 {[%emt 0:02:30]} Nc6 {[%emt 0:00:30]} 10. Re1 {[%emt 0:00:30]} Nd7 {[%emt 0:00:30]} 11. Ba3 {[%emt 0:03:30]} e5 {[%emt 0:07:30] [#]} 12. b4 $1 {[%emt 0:08:30]} Bxb4 {[%emt 0:01:30]} 13. Bxb4 {[%emt 0:00:30] The position is equal.} Nxb4 {[%emt 0:00:30]} 14. Nxe5 {[%emt 0:01:30]} Nxe5 {[%emt 0:00:30]} 15. Rxe5 {[%emt 0:00:30]} Re8 {[%emt 0:04:30]} 16. Rxe8+ {[%emt 0:02:30]} Qxe8 {[%emt 0:00:30]} 17. a3 {[%emt 0:05:30] [#]} ({White should play} 17. Be4 $14) 17... Bg4 $1 $11 {[%emt 0:02:30]} 18. Qd2 {[%emt 0:04:30] [#]} Nc2 {[%emt 0:01:30]} 19. Ra2 {[%emt 0:04:30]} (19. Qxc2 Qe1+ 20. Bf1 Re8 $19) 19... Ne1 {[%emt 0:02:30]} 20. Qf4 $1 {[%emt 0:04:30]} Nxd3 {[%emt 0:00:30]} ({Black should try} 20... Qd7 $15 21. Be4 Re8) 21. Qxg4 {[%emt 0:01:30][%cal Oa2e2]} Qe1+ {[%emt 0:00:30]} 22. Bf1 {[%emt 0:00:00]} Qxb1 {[%emt 0:00:00]} 23. Rd2 {[%emt 0:01:00]} Ne5 $1 {[%emt 0:00:00][%csl LRc4,LRg4]} 24. Qh5 {[%emt 0:07:30]} Nc6 {[%emt 0:03:30]} (24... Nxc4 25. Rxd4 g6 26. Qc5 $14) 25. Rd1 {[%emt 0:05:30]} (25. Qb5 $11 {remains equal.} Qxb5 26. cxb5) 25... Qb3 $17 {[%emt 0:00:30][%cal Og7g6]} 26. Bg2 {[%emt 0:00:30]} (26. Ra1 $17 {is a better defense.}) 26... g6 {[%emt 0:01:30]} (26... Qxc4 27. Bd5 g6 28. Qf3 $16) (26... Qxa3 27. Qb5 Qe7 28. Bxc6 bxc6 29. Qxc6) (26... d3 $1 $19 {Hoping for ...g6.} 27. Rf1 (27. Be4 $2 g6 $19) 27... Re8 (27... Qxc4 28. Bd5 $15)) 27. Qg4 {[%emt 0:03:30]} (27. Qe2 $17) 27... h5 {[%emt 0:03:30]} (27... Qxa3 28. Bxc6 bxc6 29. Rxd4 $17) (27... d3 $19 28. Bxc6 bxc6) 28. Qe2 {[%emt 0:01:30] Against Ne5} Rd8 {[%emt 0:01:30]} 29. Bd5 {[%emt 0:03:30]} Rxd5 {[%emt 0:03:30]} (29... Qxa3 $17 {Threatens to win with ...Qd6.} 30. Rb1 d3) 30. cxd5 $11 {[%emt 0:00:30]} Qxd5 $17 {[%emt 0:00:00][%mdl 4096] Endgame. KQR-KQN} 31. f4 {[%emt 0:01:30]} b5 {[%emt 0:03:00]} 32. Qe8+ {[%emt 0:05:16]} Kh7 $1 {[%emt 0:00:00]} 33. Qe2 {[%emt 0:08:19]} a5 {[%emt 0:01:00]} 34. h3 {[%emt 0:02:47]} (34. Rd2 $11) 34... b4 {[%emt 0:00:30]} (34... Qc5 $15 35. Kh2 Qxa3 36. Qxb5 Qa2+ 37. Kg1 Ne7) 35. axb4 $11 {[%emt 0:00:30]} Nxb4 {[%emt 0:00:00]} 36. f5 {[%emt 0:01:34]} Qxf5 {[%emt 0:00:00] White must now prevent ...d3.} 37. Rf1 {[%emt 0:00:12] [#]} (37. Rxd4 $11 Qxh3 38. Qf3) 37... Qd7 $1 $17 {[%emt 0:01:30][%cal Od4d3]} ({Weaker is} 37... Qxh3 38. Rxf7+ Kh6 39. Qd2+ g5 40. Rf6+ (40. Qxd4 Qxg3+ 41. Kh1 Qh3+ 42. Kg1 Qg3+ 43. Kf1 Qd3+ 44. Qxd3 Nxd3 $11) 40... Kh7 41. Qxg5) 38. Qc4 {[%emt 0:01:34]} Kg8 {[%emt 0:01:30]} ({Worse is} 38... Qxh3 39. Qxf7+ (39. Rxf7+ Kh6 40. Qc1+ g5 41. Rf6+ Kh7 42. Qc7+ Qd7 43. Qxd7+ Kg8 44. Qf7+ Kh8 45. Rh6#) 39... Kh6 40. Qf8+ Kh7 41. Rf7#) 39. Qc5 {[%emt 0:02:59] [#]} Qxh3 {[%emt 0:00:30]} (39... d3 $1 $17 {...Nc2 would now be deadly.} 40. Qxa5 Nc6) 40. Qxa5 $2 {[%emt 0:01:11][%mdl 8192]} (40. Qc7 $11 Qe6 41. Qd8+ Kh7 42. Qxd4) 40... Qxg3+ $19 {[%emt 0:00:30]} 41. Kh1 {[%emt 0:00:07]} Qh4+ {[%emt 0:00:30]} 42. Kg1 {[%emt 0:00:27]} Nd3 {[%emt 0:00:30]} 43. Qd5 {[%emt 0:00:24]} Qg3+ {[%emt 0:00:30]} 44. Kh1 {[%emt 0:00:19]} Nf4 {[%emt 0:01:30] ( -> ...Qh4+)} ({Not} 44... Nf2+ 45. Rxf2 Qxf2 46. Qa8+ Kh7 47. Qh8+ Kxh8 $11) 45. Qe4 {[%emt 0:00:25]} Qh4+ {[%emt 0:00:00] Weighted Error Value: White=0.64/Black=0.31.  Loses game:     	White=1     	---        Mistake:       	White=6     	Black=6      Inaccurate:     	White=1     	Black=1      OK:         	White=8     	Black=8      Best:        	White=4     	Black=4      Strong:       	White=1     	Black=2} 0-1